bitfinex/quotes_SOLUSD_20220118
["timestamp","ask_amount","ask_price","bid_price","bid_amount"]
[1642530933702,6.0,136.21,136.15,1.78905272]
[1642530934100,6.0,136.21,136.14,46.59977068]
[1642530934101,2.936,136.2,136.14,46.59977068]
[1642530934903,6.0,136.21,136.14,48.3888234]
[1642530935103,2.936,136.22,136.15,0.25]
[1642530935304,6.0,136.21,136.15,0.25]
[1642530935504,6.0,136.21,136.15,2.03905272]
[1642530935707,2.936,136.24,136.16,10.47]
[1642530935903,2.936,136.24,136.17,38.32277329]
[1642530936106,6.0,136.23,136.18,10.47]
[1642530936304,2.936,136.22,136.15,10.72]
[1642530936704,6.0,136.21,136.15,10.72]
[1642530937204,2.936,136.22,136.16,48.14775425]
[1642530937403,6.0,136.21,136.16,48.14775425]
[1642530937605,2.936,136.24,136.16,48.14775425]
[1642530937806,6.0,136.21,136.16,58.61775425]
[1642530938308,6.0,136.21,136.16,10.47]
[1642530939108,3.186,136.2,136.11,10.47]
[1642530939308,28.71950232,136.19,136.12,0.25]
[1642530939508,6.0,136.19,136.12,0.25]
[1642530939708,6.0,136.19,136.12,2.03905272]
[1642530939908,26.3811,136.21,136.12,13.05515272]
[1642530940111,6.0,136.2,136.13,10.47]
[1642530940308,2.936,136.24,136.14,0.25]
[1642530940508,6.0,136.23,136.15,10.47]
[1642530940709,6.0,136.23,136.16,0.25]
[1642530941109,2.936,136.22,136.16,0.25]
[1642530941508,8.936,136.23,136.16,0.25]
[1642530941913,6.0,136.23,136.17,10.47]
[1642530942210,6.0,136.25,136.18,11.261]
[1642530942410,6.0,136.25,136.19,10.47]
[1642530942609,6.0,136.28,136.19,10.47]
[1642530942811,34.14836962,136.27,136.2,0.25]
[1642530943009,6.0,136.26,136.2,0.25]
[1642530943212,6.0,136.26,136.2,11.2598]
[1642530943415,6.0,136.26,136.21,10.47]
[1642530943712,6.0,136.26,136.22,0.25]
[1642530943911,6.0,136.26,136.21,16.548]
[1642530943912,33.15847615,136.27,136.21,10.47]
[1642530944111,8.935,136.26,136.21,10.47]
[1642530944411,8.935,136.26,136.18,10.47]
[1642530944617,0.25,136.25,136.18,10.47]
[1642530944812,2.936,136.24,136.18,10.47]
[1642530945011,6.0,136.23,136.18,10.47]
[1642530945215,6.0,136.23,136.18,45.25089997]
[1642530945417,2.936,136.22,136.18,45.25089997]
[1642530945615,2.936,136.22,136.18,10.47]
[1642530945915,6.0,136.23,136.18,10.47]
[1642530946315,6.0,136.22,136.18,10.47]
[1642530947114,9.45673555,136.24,136.18,10.47]
[1642530947115,6.0,136.23,136.18,10.47]
[1642530948417,3.186,136.22,136.18,10.47]
[1642530948619,3.186,136.22,136.14,10.47]
[1642530948819,6.0,136.21,136.14,10.72]
[1642530949017,2.936,136.2,136.14,10.72]
[1642530949217,11.693,136.2,136.14,10.47]
[1642530949417,33.15847615,136.18,136.11,1.78905272]
[1642530949622,8.938,136.17,136.08,37.71240626]
[1642530949822,9.188,136.17,136.08,37.71240626]
[1642530950422,33.1157,136.17,136.08,37.71240626]
[1642530950624,33.1157,136.17,136.09,21.4892]
[1642530950823,33.1157,136.17,136.09,10.47]
[1642530952724,29.9277,136.17,136.1,0.25]
[1642530953125,29.9277,136.17,136.1,11.2685]
[1642530955155,29.9277,136.17,136.1,11.0185]
[1642530955357,2.938,136.16,136.09,10.47]
[1642530955556,6.0,136.15,136.09,10.47]
[1642530955757,2.938,136.14,136.09,10.47]
[1642530956359,6.25,136.15,136.09,10.47]
[1642530957059,14.12149399,136.14,136.04,12.25600266]
[1642530957261,0.25,136.13,136.05,10.47]
[1642530957459,2.939,136.12,136.06,10.47]
[1642530957859,6.0,136.11,136.06,10.47]
[1642530958365,6.0,136.11,136.07,0.25]
[1642530958663,2.939,136.12,136.07,0.25]
[1642530958861,6.0,136.11,136.07,0.25]
[1642530959460,3.189,136.13,136.07,0.25]
[1642530960464,6.0,136.12,136.07,0.25]
[1642530962862,6.0,136.13,136.07,0.25]
[1642530963464,8.439,136.13,136.07,0.25]
[1642530965064,5.5,136.13,136.07,0.25]
[1642530965465,2.939,136.17,136.07,13.06015272]
[1642530965665,2.939,136.17,136.08,10.47]
[1642530965865,22.6421,136.18,136.08,10.72]
[1642530966165,8.938,136.17,136.09,1.78905272]
[1642530966369,6.0,136.17,136.1,50.88574561]
[1642530966568,2.938,136.16,136.1,50.88574561]
[1642530967568,8.938,136.17,136.1,50.88574561]
[1642530968168,8.938,136.17,136.11,0.25]
[1642530968569,8.938,136.17,136.1,11.0187]
[1642530968770,8.938,136.17,136.09,21.4895]
[1642530968972,0.25,136.16,136.09,10.47]
[1642530969169,2.938,136.15,136.09,10.47]
[1642530969570,8.62624776,136.14,136.09,10.47]
[1642530969970,3.188,136.13,136.09,10.47]
[1642530970373,6.0,136.12,136.09,10.47]
[1642530970785,6.06439993,136.11,136.09,10.47]
[1642530972004,6.06439993,136.11,136.05,11.0223]
[1642530972178,6.06439993,136.11,136.05,21.4923]
[1642530972778,6.06439993,136.11,136.05,10.47]
[1642530972779,9.00339993,136.11,136.05,10.47]
[1642530972976,6.0,136.1,136.05,10.47]
[1642530973178,6.25,136.1,136.05,10.47]
[1642530973678,37.05296394,136.09,136.05,10.47]
[1642530973979,6.0,136.08,136.05,10.47]
[1642530974385,6.06439993,136.07,136.05,10.47]
[1642530974887,6.0,136.08,136.05,10.47]
[1642530975081,24.3876,136.11,136.05,10.47]
[1642530975281,24.3876,136.11,136.06,0.25]
[1642530976383,6.0,136.1,136.05,10.47]
[1642530976583,9.189,136.1,136.02,11.38650726]
[1642530976788,9.189,136.1,136.02,11.63650726]
[1642530976985,9.189,136.1,136.02,13.42555998]
[1642530977487,20.2148,136.1,136.02,13.42555998]
[1642530978085,20.2148,136.1,136.02,11.38650726]
[1642530978286,25.8248,136.1,136.02,11.38650726]
[1642530978484,25.8248,136.1,136.02,0.91650726]
[1642530979714,11.0294,136.07,136.02,0.91650726]
[1642530979915,2.94,136.06,136.02,0.91650726]
[1642530980114,9.19,136.06,136.02,0.91650726]
[1642530980414,6.25,136.06,136.02,0.91650726]
[1642530980619,11.25350306,136.06,136.02,0.91650726]
[1642530980815,6.0,136.05,136.02,0.91650726]
[1642530981015,6.06439993,136.04,136.02,0.91650726]
[1642530981215,23.20799993,136.04,136.02,0.91650726]
[1642530981417,6.0,136.03,136.02,0.91650726]
[1642530983618,6.06439993,136.04,136.02,0.91650726]
[1642530983818,2.94,136.08,136.02,0.91650726]
[1642530984019,60.8509,136.11,136.02,0.91650726]
[1642530984020,2.94,136.09,136.02,2.70555998]
[1642530984219,26.1316,136.1,136.03,0.25]
[1642530984623,6.0,136.09,136.03,2.03905272]
[1642530984920,6.0,136.09,136.03,40.71951903]
[1642530986020,17.0266,136.09,136.03,40.71951903]
[1642530986721,2.939,136.08,136.02,11.38650726]
[1642530986922,2.939,136.08,136.02,0.91650726]
[1642530987125,6.0,136.07,136.02,0.91650726]
[1642530987323,17.0289,136.07,136.02,0.91650726]
[1642530987522,3.19,136.06,136.02,0.91650726]
[1642530987922,6.0,136.05,136.02,0.91650726]
[1642530988123,6.06439993,136.04,136.02,0.91650726]
[1642530988324,9.00439993,136.04,136.02,0.91650726]
[1642530988526,6.06439993,136.04,136.02,0.91650726]
[1642530988925,6.0,136.03,136.02,0.91650726]
[1642530990329,6.25,136.03,136.02,0.91650726]
[1642530991529,17.2815,136.03,136.02,0.91650726]
[1642530993031,20.2215,136.03,135.97,10.47]
[1642530993231,0.25,136.02,135.94,10.47]
[1642530993433,11.0345,136.0,135.92,10.47]
[1642530993631,0.25,136.02,135.92,10.47]
[1642530993632,8.942,135.99,135.92,10.47]
[1642530993832,2.942,135.98,135.92,10.47]
[1642530994030,6.0,135.97,135.9,11.0355]
[1642530994231,6.25,135.97,135.9,11.0355]
[1642530994631,6.25,135.97,135.91,40.38314362]
[1642530995434,2.942,136.0,135.92,0.25]
[1642530995634,6.0,135.99,135.92,0.25]
[1642530995832,6.25,135.99,135.92,0.25]
[1642530996032,6.0,135.99,135.92,5.87953399]
[1642530996232,6.0,136.0,135.92,5.87953399]
[1642530996435,2.942,135.99,135.92,5.62953399]
[1642530996633,9.192,136.0,135.92,5.62953399]
[1642530996834,9.192,136.0,135.93,0.25]
[1642530997134,6.25,136.0,135.93,0.25]
[1642530998034,6.25,136.0,135.94,48.58046389]
[1642530998434,6.25,136.0,135.94,1.78905272]
[1642530998634,9.191,136.0,135.93,0.25]
[1642530999134,6.25,136.0,135.93,10.72]
[1642530999535,9.0915132,135.99,135.93,10.72]
[1642530999936,6.0,135.98,135.93,10.72]
[1642531001734,0.25,136.0,135.93,10.72]
[1642531001935,22.87,136.01,135.93,21.7533]
[1642531002735,22.87,136.01,135.94,42.16475436]
[1642531003137,6.0,136.0,135.95,11.2814]
[1642531003536,8.941,136.0,135.93,10.47]
[1642531003936,0.25,135.99,135.93,10.47]
[1642531004136,2.942,135.98,135.93,10.47]
[1642531004337,13.9779,135.98,135.93,10.47]
[1642531004636,8.19853485,135.97,135.93,10.47]
[1642531006738,19.23523485,135.97,135.93,10.47]
[1642531006938,2.942,135.96,135.89,14.3101643]
[1642531007137,6.0,135.95,135.87,10.47]
[1642531007337,37.71964121,135.94,135.87,10.47]
[1642531007539,6.0,135.93,135.87,14.31147763]
[1642531008139,6.0,135.93,135.88,0.25]
[1642531009343,2.943,135.92,135.87,14.31147763]
[1642531009539,2.943,135.92,135.87,10.47]
[1642531009739,3.98606323,135.91,135.87,10.47]
[1642531009941,9.98606323,135.91,135.87,10.47]
[1642531011647,16.25506323,135.91,135.85,14.31198316]
[1642531011845,16.25506323,135.91,135.85,3.84198316]
[1642531012050,2.943,135.9,135.83,10.47]
[1642531012250,2.943,135.9,135.84,0.25]
[1642531012449,34.77664121,135.88,135.84,0.25]
[1642531012851,6.0,135.89,135.84,0.25]
[1642531013482,6.0,135.92,135.84,2.03905272]
[1642531013680,2.943,135.91,135.85,10.47]
[1642531013879,6.0,135.92,135.86,0.25]
[1642531014080,6.0,135.93,135.86,0.25]
[1642531014280,6.0,135.93,135.86,2.03905272]
[1642531015182,6.0,135.93,135.87,10.47]
[1642531015580,6.0,135.93,135.88,0.25]
[1642531015782,6.0,135.93,135.88,36.87054352]
[1642531015983,26.7254,135.94,135.88,36.87054352]
[1642531016783,26.7254,135.94,135.88,0.25]
[1642531017180,26.7254,135.94,135.87,10.47]
[1642531017581,26.7254,135.94,135.88,11.0372]
[1642531018680,26.7254,135.94,135.88,12.82625272]
[1642531019883,26.7254,135.94,135.88,23.29625272]
[1642531020083,26.7254,135.94,135.88,21.5072]
[1642531020684,6.0,135.93,135.88,10.47]
[1642531021088,3.193,135.92,135.88,10.47]
[1642531021788,14.2334,135.92,135.88,10.47]
[1642531021987,6.0,135.91,135.88,10.47]
[1642531022188,6.06439993,135.9,135.88,10.47]
[1642531022588,6.0,135.89,135.88,10.47]
[1642531022987,6.0,135.89,135.83,1.78905272]
[1642531023189,0.25,135.88,135.84,10.47]
[1642531023488,8.073,135.88,135.83,10.47]
[1642531023687,11.017,135.88,135.83,10.47]
[1642531023888,6.0,135.87,135.83,10.47]
[1642531024087,2.944,135.86,135.83,10.47]
[1642531024289,6.06439993,135.85,135.83,10.47]
[1642531024891,13.4450287,135.84,135.78,5.93727409]
[1642531025090,24.9670287,135.84,135.79,10.47]
[1642531025291,22.0230287,135.84,135.79,10.47]
[1642531025490,22.0230287,135.84,135.78,4.14822137]
[1642531025691,2.945,135.83,135.78,4.14822137]
[1642531026091,39.31217574,135.81,135.78,4.14822137]
[1642531026290,3.195,135.8,135.75,10.47]
[1642531026590,6.25,135.8,135.75,10.47]
[1642531026792,6.0,135.8,135.75,10.47]
[1642531027592,8.946,135.81,135.75,10.47]
[1642531027793,6.0,135.81,135.75,10.47]
[1642531027991,3.195,135.8,135.75,10.47]
[1642531028396,8.946,135.81,135.75,10.47]
[1642531029392,6.0,135.81,135.75,10.47]
[1642531030695,0.25,135.8,135.75,10.47]
[1642531031695,3.196,135.8,135.75,10.47]
[1642531032295,6.0,135.79,135.75,10.47]
[1642531032698,0.25,135.78,135.75,10.47]
[1642531032897,3.03219997,135.77,135.75,10.47]
[1642531033097,6.06439993,135.77,135.75,10.47]
[1642531034098,2.946,135.82,135.75,10.47]
[1642531034295,6.25,135.81,135.75,10.47]
[1642531034695,6.25,135.81,135.75,55.57720557]
[1642531034897,6.0,135.81,135.75,66.62570557]
[1642531035098,2.945,135.83,135.76,0.25]
[1642531035295,10.47,135.89,135.77,10.47]
[1642531035296,2.945,135.88,135.77,10.47]
[1642531035699,2.945,135.88,135.78,0.25]
[1642531035898,2.945,135.88,135.79,21.5148]
[1642531035899,13.9898,135.88,135.79,21.5148]
[1642531036099,30.16193989,135.87,135.79,10.47]
[1642531036299,2.944,135.86,135.79,10.47]
[1642531036500,9.194,135.86,135.79,10.47]
[1642531036701,9.194,135.86,135.74,1.78905272]
[1642531036903,24.2472,135.85,135.75,10.72]
[1642531037100,11.0491,135.82,135.75,10.72]
[1642531037300,0.25,135.81,135.75,10.72]
[1642531037499,6.25,135.81,135.75,10.72]
[1642531038501,17.2998,135.81,135.75,10.72]
[1642531039307,2.945,135.8,135.75,10.47]
[1642531039528,36.16193989,135.79,135.75,10.47]
[1642531039728,36.41193989,135.79,135.75,10.47]
[1642531040231,2.945,135.8,135.75,21.5186]
[1642531040430,2.946,135.82,135.75,21.5186]
[1642531040631,6.25,135.81,135.75,21.5186]
[1642531041429,9.195,135.81,135.75,21.5186]
[1642531041629,6.0,135.81,135.76,0.25]
[1642531041829,6.0,135.81,135.77,11.0451]
[1642531042031,6.0,135.83,135.77,21.5151]
[1642531042230,6.0,135.83,135.78,0.25]
[1642531042436,24.8521,135.84,135.78,0.25]
[1642531042831,27.7971,135.84,135.78,11.0462]
[1642531043031,24.8521,135.84,135.78,11.2962]
[1642531043232,27.7971,135.84,135.78,11.0462]
[1642531044032,24.8521,135.84,135.78,11.0462]
[1642531047238,3.195,135.83,135.77,21.5171]
[1642531047438,9.195,135.83,135.75,12.53207811]
[1642531048039,30.99008053,135.82,135.75,12.53207811]
[1642531048240,2.945,135.81,135.75,12.53207811]
[1642531048440,2.945,135.81,135.76,11.048]
[1642531048839,2.945,135.81,135.75,10.47]
[1642531049042,6.25,135.8,135.74,2.06207811]
[1642531049842,6.25,135.8,135.73,53.79339234]
[1642531050040,6.25,135.8,135.74,0.25]
[1642531050440,6.25,135.8,135.74,11.2995]
[1642531050841,6.25,135.8,135.74,13.36157811]
[1642531051041,7.77262391,135.79,135.74,13.36157811]
[1642531052041,6.25,135.8,135.74,13.36157811]
[1642531052442,0.25,135.8,135.74,13.36157811]
[1642531053147,0.25,135.8,135.76,11.0474]
[1642531053345,24.5683,135.81,135.76,11.0474]
[1642531053945,24.8521,135.84,135.76,13.10947811]
[1642531054143,8.945,135.83,135.76,13.10947811]
[1642531054343,9.195,135.83,135.76,53.13115297]
[1642531055543,9.195,135.83,135.77,2.06207811]
[1642531055742,9.195,135.83,135.78,11.0457]
[1642531056545,9.195,135.83,135.77,2.06207811]
[1642531056956,20.243,135.83,135.77,2.06207811]
[1642531057947,20.243,135.83,135.75,2.06207811]
[1642531058147,44.67395272,135.83,135.75,2.06207811]
[1642531058847,44.67395272,135.83,135.73,2.06207811]
[1642531059649,42.8849,135.83,135.73,2.06207811]
[1642531060149,42.8849,135.83,135.72,40.79626072]
[1642531060748,42.6349,135.83,135.73,0.25]
[1642531060949,31.5869,135.83,135.73,0.25]
[1642531061147,31.5869,135.83,135.76,11.048]
[1642531061348,31.5869,135.83,135.73,37.075]
[1642531061551,31.5869,135.83,135.74,2.06207811]
[1642531061949,42.6348,135.83,135.74,2.06207811]
[1642531062150,0.25,135.82,135.74,2.06207811]
[1642531062350,2.945,135.81,135.75,45.78702674]
[1642531062551,6.0,135.8,135.75,46.03702674]
[1642531062751,6.0,135.8,135.75,56.83582674]
[1642531063152,6.0,135.8,135.75,11.0488]
[1642531063350,6.0,135.81,135.75,11.0488]
[1642531063752,0.25,135.8,135.75,11.0488]
[1642531063951,3.195,135.8,135.75,11.0488]
[1642531064354,6.0,135.79,135.75,11.0488]
[1642531064952,6.25,135.8,135.75,11.0488]
[1642531065151,0.25,135.8,135.75,11.0488]
[1642531065352,6.0,135.79,135.75,11.0488]
[1642531065551,24.9993,135.81,135.75,11.0488]
[1642531065752,2.945,135.8,135.75,11.0488]
[1642531065953,6.0,135.8,135.75,11.0488]
[1642531066151,35.08962854,135.8,135.75,11.0488]
[1642531066552,0.25,135.79,135.75,13.11087811]
[1642531066955,0.25,135.79,135.75,2.06207811]
[1642531067154,0.25,135.79,135.74,13.11197811]
[1642531067553,3.196,135.79,135.74,2.06207811]
[1642531067959,9.6730759,135.77,135.74,2.06207811]
[1642531068357,6.06439993,135.76,135.74,2.06207811]
[1642531069562,6.25,135.75,135.73,2.06207811]
[1642531070060,2.946,135.8,135.71,12.53207811]
[1642531070261,0.25,135.79,135.72,0.25]
[1642531070461,6.25,135.79,135.72,0.25]
[1642531070661,0.25,135.79,135.74,11.0488]
[1642531070861,6.0,135.78,135.74,11.0488]
[1642531071462,6.0,135.8,135.74,11.0488]
[1642531071665,6.25,135.8,135.74,11.0488]
[1642531072264,6.25,135.8,135.74,13.11087811]
[1642531072664,6.0,135.8,135.75,0.25]
[1642531072864,6.0,135.8,135.76,11.0477]
[1642531074291,6.0,135.8,135.75,0.25]
[1642531074694,6.0,135.8,135.75,2.31207811]
[1642531074893,6.0,135.8,135.76,39.05244266]
[1642531075491,6.0,135.8,135.76,50.10064266]
[1642531075893,6.0,135.8,135.76,11.0482]
[1642531077093,6.0,135.81,135.76,11.0482]
[1642531077295,6.25,135.81,135.76,11.0482]
[1642531077804,25.9153,135.83,135.76,11.0482]
[1642531077994,2.945,135.85,135.78,11.0451]
[1642531078196,2.945,135.87,135.78,21.5151]
[1642531078394,27.2787,135.87,135.78,21.5151]
[1642531078596,6.0,135.86,135.78,21.5151]
[1642531079198,0.25,135.85,135.78,21.5151]
[1642531079901,0.25,135.85,135.78,23.57717811]
[1642531083504,24.3337,135.87,135.79,0.25]
[1642531083702,24.3337,135.87,135.81,11.0422]
[1642531083901,2.945,135.88,135.81,11.0422]
[1642531084104,6.0,135.87,135.81,11.0422]
[1642531084303,6.25,135.87,135.81,56.07375592]
[1642531085105,6.0,135.87,135.81,56.07375592]
[1642531085308,6.0,135.88,135.83,11.0424]
[1642531087912,6.0,135.89,135.83,11.0424]
[1642531088114,23.7705,135.9,135.84,0.25]
[1642531088314,23.7705,135.9,135.85,11.0396]
[1642531088512,23.8202,135.92,135.85,11.0396]
[1642531088713,26.7632,135.92,135.85,11.0396]
[1642531088915,6.0,135.91,135.85,11.0396]
[1642531091119,16.91220312,135.91,135.85,11.0396]
[1642531091317,3.193,135.9,135.85,11.0396]
[1642531091518,6.0,135.89,135.84,21.5119]
[1642531091719,0.25,135.88,135.84,10.47]
[1642531091918,3.194,135.88,135.84,10.47]
[1642531092148,6.0,135.87,135.84,10.47]
[1642531092346,6.06439993,135.86,135.84,10.47]
[1642531092542,6.06439993,135.86,135.84,21.5115]
[1642531093445,3.03219997,135.86,135.84,21.5115]
[1642531093644,13.85620312,135.91,135.84,21.5115]
[1642531094047,6.25,135.9,135.84,58.81400297]
[1642531095147,6.0,135.9,135.86,11.0397]
[1642531095547,2.944,135.91,135.86,11.0397]
[1642531096150,0.25,135.9,135.86,11.0397]
[1642531096351,0.25,135.9,135.84,10.47]
[1642531096352,6.25,135.9,135.84,10.47]
[1642531096549,2.943,135.89,135.82,10.47]
[1642531096751,0.25,135.88,135.82,10.47]
[1642531096950,2.944,135.87,135.82,10.47]
[1642531097150,5.68141951,135.88,135.82,10.47]
[1642531097352,6.0,135.87,135.82,21.5133]
[1642531100655,6.0,135.87,135.83,0.25]
[1642531100955,6.0,135.89,135.84,11.0404]
[1642531101159,6.0,135.89,135.85,0.25]
[1642531101555,6.0,135.92,135.85,0.25]
[1642531101856,30.51523994,135.91,135.83,36.7994]
[1642531102055,6.0,135.9,135.82,10.47]
[1642531102257,3.194,135.89,135.82,10.47]
[1642531102658,6.0,135.88,135.82,10.47]
[1642531103063,14.2474645,135.88,135.82,10.47]
[1642531103257,14.2474645,135.88,135.83,11.0429]
[1642531103456,6.0,135.88,135.83,11.0429]
[1642531104858,6.0,135.88,135.84,0.25]
[1642531105060,6.0,135.89,135.85,11.0387]
[1642531105359,2.944,135.93,135.86,0.25]
[1642531105563,2.944,135.93,135.84,12.50905272]
[1642531105766,2.944,135.93,135.85,35.8891186]
[1642531106061,6.96794601,135.97,135.87,11.0386]
[1642531106263,24.31691909,135.96,135.88,0.25]
[1642531106461,24.31691909,135.96,135.88,2.03905272]
[1642531106663,6.0,135.95,135.88,2.03905272]
[1642531106862,24.31691909,135.96,135.89,40.71604131]
[1642531107060,1.79311909,135.96,135.89,46.93804131]
[1642531107263,1.79311909,135.96,135.9,11.2855]
[1642531107460,22.966,135.98,135.9,13.07455272]
[1642531107461,1.79311909,135.98,135.9,13.07455272]
[1642531107662,1.79311909,135.98,135.91,10.47]
[1642531107861,1.79311909,135.98,135.91,18.25905272]
[1642531108065,1.79311909,135.98,135.92,37.0212]
[1642531108264,1.79311909,135.98,135.92,86.66732261]
[1642531108461,1.79311909,135.98,135.93,12.82045272]
[1642531108661,1.79311909,135.98,135.94,10.72]
[1642531108864,26.98014601,136.01,135.94,10.72]
[1642531108865,28.7732651,136.01,135.94,10.72]
[1642531109061,1.79311909,136.01,135.94,12.50905272]
[1642531109263,1.79311909,136.01,135.94,47.7436]
[1642531109463,1.79311909,136.01,135.95,40.95975611]
[1642531109670,1.79311909,136.01,135.96,10.72]
[1642531109864,1.79311909,136.01,135.97,11.027]
[1642531110063,1.79311909,136.01,135.98,10.47]
[1642531110263,1.909e-05,136.01,135.99,32.0]
[1642531110465,1.909e-05,136.04,136.0,10.47]
[1642531110665,1.909e-05,136.04,136.0,10.72]
[1642531110965,1.909e-05,136.04,136.0,12.50905272]
[1642531111263,1.909e-05,136.04,136.0,21.7456]
[1642531111463,1.909e-05,136.04,136.0,21.4956]
[1642531111665,2.94,136.09,136.0,21.4956]
[1642531111666,2.94,136.03,136.0,10.47]
[1642531111865,6.06439993,136.02,136.0,10.47]
[1642531112066,3.03219996,136.02,136.0,10.47]
[1642531112666,2.94,136.05,136.0,10.47]
[1642531112866,0.25,136.04,136.0,10.47]
[1642531113068,2.94,136.03,136.0,10.47]
[1642531113767,2.94,136.05,136.0,10.47]
[1642531113967,3.19,136.05,136.0,10.47]
[1642531115970,6.0,136.06,136.01,0.25]
[1642531116167,2.94,136.08,136.01,0.25]
[1642531116367,2.94,136.09,136.01,0.25]
[1642531116569,2.94,136.09,136.01,7.473]
[1642531116769,2.94,136.09,136.01,7.223]
[1642531116967,38.75729552,136.09,136.01,48.04342542]
[1642531117170,38.75729552,136.09,136.01,17.693]
[1642531117171,0.25,136.08,136.01,17.693]
[1642531117370,2.94,136.07,136.02,11.0258]
[1642531118471,2.94,136.07,136.02,58.45843737]
[1642531118672,3.19,136.08,136.02,58.45843737]
[1642531118870,0.25,136.08,136.02,65.80843737]
[1642531120675,24.7784,136.1,136.03,10.72]
[1642531120870,24.7784,136.1,136.05,11.0228]
[1642531121571,24.7784,136.1,136.06,46.64446988]
[1642531121773,25.6822,136.14,136.06,46.64446988]
[1642531121971,6.0,136.13,136.07,11.0219]
[1642531122273,6.25,136.13,136.07,11.0219]
[1642531122873,2.939,136.12,136.05,10.47]
[1642531123075,6.0,136.11,136.05,10.47]
[1642531123272,2.939,136.1,136.05,10.47]
[1642531123677,0.25,136.09,136.05,10.47]
[1642531124075,0.25,136.09,136.05,52.60524823]
[1642531124576,8.939,136.11,136.05,52.60524823]
[1642531124774,0.25,136.1,136.05,52.60524823]
[1642531125376,6.0,136.12,136.05,52.60524823]
[1642531125580,2.939,136.11,136.05,52.60524823]
[1642531125779,3.189,136.11,136.05,52.60524823]
[1642531125977,0.25,136.11,136.05,52.60524823]
[1642531126181,2.939,136.1,136.05,52.60524823]
[1642531126579,0.25,136.09,136.05,21.4937]
[1642531126778,2.939,136.08,136.05,21.4937]
[1642531126980,2.939,136.08,136.02,10.47]
[1642531127180,0.25,136.07,136.02,10.47]
[1642531127379,0.25,136.07,135.95,1.78905272]
[1642531127579,2.94,136.06,135.96,10.47]
[1642531127779,0.25,136.05,135.96,10.47]
[1642531128581,6.25,136.05,135.97,0.25]
[1642531128786,6.25,136.05,135.97,58.74750675]
[1642531128983,6.25,136.05,135.97,58.49750675]
[1642531129185,6.25,136.05,135.98,0.25]
[1642531129585,6.25,136.05,135.98,11.2794]
[1642531131087,6.50251926,136.04,135.96,11.0303]
[1642531131293,0.25,136.03,135.93,10.47]
[1642531131489,2.941,136.02,135.93,10.47]
[1642531131689,0.25,136.01,135.93,10.47]
[1642531131890,2.941,136.0,135.88,13.17568043]
[1642531132099,38.26018518,135.99,135.9,49.58362672]
[1642531132289,2.942,135.98,135.9,60.05362672]
[1642531132688,0.25,135.97,135.9,60.05362672]
[1642531133514,0.25,135.97,135.91,11.0349]
[1642531133715,6.0,135.99,135.92,0.25]
[1642531133919,6.0,135.99,135.92,10.72]